bitfinex/quotes_ETHUSD_20230118
["timestamp","ask_amount","ask_price","bid_price","bid_amount"]
[1674010832314,9.42736407,1584.6,1584.5,0.05175986]
[1674010832520,9.49336407,1584.6,1584.5,0.05175986]
[1674010832766,0.066,1584.6,1584.5,0.05175986]
[1674010832983,1.71538516,1584.8,1584.5,0.05175986]
[1674010833197,3.28816259,1584.7,1584.5,0.05175986]
[1674010833613,9.42718407,1584.7,1584.5,0.05175986]
[1674010833786,3.11662407,1584.6,1584.5,0.05175986]
[1674010834047,15.73810407,1584.6,1584.5,0.05175986]
[1674010834214,18.24557048,1584.6,1584.5,0.05175986]
[1674010834666,0.066,1584.6,1584.5,0.05175986]
[1674010834881,12.68638,1584.8,1584.5,0.05175986]
[1674010835205,9.49281407,1584.8,1584.5,0.05175986]
[1674010836673,3.11662407,1584.7,1584.5,0.05175986]
[1674010836892,3.11662407,1584.6,1584.5,0.05175986]
[1674010837201,23.24456548,1584.6,1584.5,0.05175986]
[1674010837444,23.31056548,1584.6,1584.5,0.05175986]
[1674010837808,23.61440899,1584.6,1584.5,0.05175986]
[1674010838235,24.60412615,1584.6,1584.5,0.05175986]
[1674010839879,26.55619088,1584.6,1584.5,0.05175986]
[1674010840051,29.55619088,1584.6,1584.5,0.05175986]
[1674010840261,29.55619088,1584.6,1584.5,0.01147607]
[1674010840262,28.24136186,1584.6,1584.5,0.01147607]
[1674010841189,28.56646571,1584.6,1584.5,0.01147607]
[1674010842269,29.55600382,1584.6,1584.5,0.01147607]
[1674010842436,31.46900411,1584.6,1584.5,0.01147607]
[1674010842647,30.47946571,1584.6,1584.5,0.01147607]
[1674010843729,41.24846393,1584.6,1584.5,0.01147607]
[1674010843956,37.79020744,1584.6,1584.5,0.01147607]
[1674010844256,31.11620744,1584.6,1584.5,0.01147607]
[1674010844644,30.47946571,1584.6,1584.5,0.01147607]
[1674010845015,41.5770485,1584.6,1584.4,0.04246464]
[1674010845205,14.26432624,1584.5,1584.4,0.04246464]
[1674010845416,47.26371624,1584.5,1584.4,0.04246464]
[1674010845801,47.90045797,1584.5,1584.4,0.04246464]
[1674010846147,48.88925715,1584.5,1584.4,0.04246464]
[1674010846323,47.57033104,1584.5,1584.4,0.04246464]
[1674010847219,59.65825537,1584.5,1584.4,0.04246464]
[1674010847371,59.65825537,1584.5,1584.3,0.05042227]
[1674010847372,9.06199536,1584.4,1584.3,0.05042227]
[1674010847580,42.30489493,1584.4,1584.3,0.05042227]
[1674010847839,7.57,1584.3,1584.2,0.06240467]
[1674010848053,7.431,1584.2,1584.1,0.05321394]
[1674010848267,36.29406321,1584.2,1584.1,0.05321394]
[1674010848582,35.6568275,1584.2,1584.1,0.05321394]
[1674010848805,35.3303558,1584.2,1584.1,0.05321394]
[1674010848967,34.69361407,1584.2,1584.1,0.05321394]
[1674010849793,35.3303558,1584.2,1584.1,0.05321394]
[1674010851281,32.78061407,1584.2,1584.1,0.05321394]
[1674010851683,26.10661407,1584.2,1584.1,0.05321394]
[1674010856943,36.87561229,1584.2,1584.1,0.05321394]
[1674010857083,24.12575123,1584.1,1583.7,0.06712326]
[1674010857293,30.5383753,1584.1,1583.7,0.06712326]
[1674010857764,37.21723873,1584.1,1583.7,0.06712326]
[1674010857977,43.89123873,1584.1,1583.7,0.06712326]
[1674010858189,43.89123873,1584.1,1584.0,0.00021394]
[1674010858190,44.52787863,1584.1,1584.0,0.00021394]
[1674010858378,39.07702625,1584.1,1584.0,0.00021394]
[1674010858586,39.73614602,1584.1,1584.0,0.00021394]
[1674010859186,25.9783753,1584.1,1584.0,0.00021394]
[1674010859397,22.35081407,1584.1,1584.0,0.00021394]
[1674010861503,22.30081407,1584.1,1584.0,0.00021394]
[1674010868163,23.26103203,1584.1,1584.0,0.00021394]
[1674010868333,23.26103039,1584.1,1584.0,0.00021394]
[1674010868540,26.26103039,1584.1,1584.0,0.00021394]
[1674010868798,30.36037312,1584.1,1584.0,0.00021394]
[1674010869505,31.98430803,1584.1,1584.0,0.00021394]
[1674010869724,35.42024904,1584.1,1584.0,0.00021394]
[1674010869924,31.32525082,1584.1,1584.0,0.00021394]
[1674010870139,31.98484081,1584.1,1584.0,0.00021394]
[1674010870904,31.32525082,1584.1,1584.0,0.00021394]
[1674010871483,31.98490234,1584.1,1584.0,0.00021394]
[1674010871750,30.36096743,1584.1,1584.0,0.00021394]
[1674010871965,29.1701568,1584.1,1584.0,0.00021394]
[1674010872114,22.07081407,1584.1,1584.0,1.67521394]
[1674010872330,9.44535407,1584.1,1584.0,1.67521394]
[1674010872606,3.18262407,1584.1,1584.0,1.67521394]
[1674010872760,0.066,1584.2,1584.0,1.67521394]
[1674010872967,0.65965152,1584.5,1584.0,14.30147394]
[1674010872968,6.31119,1584.5,1584.0,14.30147394]
[1674010873183,6.37719,1584.5,1584.1,1.43014739]
[1674010873395,6.37719,1584.5,1584.1,7.74263739]
[1674010873619,6.37719,1584.5,1584.1,7.80540369]
[1674010873968,9.49381407,1584.5,1584.1,1.49291369]
[1674010874132,9.49381407,1584.5,1584.1,1.43014739]
[1674010874777,9.49381407,1584.5,1584.1,7.74285739]
[1674010874998,9.49381407,1584.5,1584.2,0.77428574]
[1674010875478,15.80500407,1584.5,1584.2,0.77428574]
[1674010875686,15.80500407,1584.5,1584.1,1.43014739]
[1674010876147,16.46465559,1584.5,1584.0,13.53503024]
[1674010876364,3.11662407,1584.4,1584.0,0.06298024]
[1674010876528,3.11662407,1584.3,1584.0,0.00021394]
[1674010876897,15.74063407,1584.3,1584.0,0.00021394]
[1674010877055,15.80663407,1584.3,1584.0,0.00021394]
[1674010877684,18.08443763,1584.3,1584.0,0.00021394]
[1674010878119,11.77242763,1584.3,1584.0,0.00021394]
[1674010878334,9.49462407,1584.3,1584.0,0.00021394]
[1674010879823,0.066,1584.3,1584.0,0.00021394]
[1674010880033,0.066,1584.4,1584.0,12.62646394]
[1674010880260,12.68852,1584.5,1584.0,12.68923024]
[1674010880486,9.49381407,1584.5,1584.0,12.68923024]
[1674010880650,3.18262407,1584.5,1584.1,1.26892302]
[1674010880860,0.066,1584.6,1584.1,1.26892302]
[1674010881222,0.066,1584.7,1584.2,12.62458]
[1674010881371,6.51701344,1584.9,1584.3,3.0]
[1674010881583,9.63363751,1584.9,1584.3,3.0]
[1674010881803,9.63363751,1584.9,1584.4,12.62254]
[1674010882015,9.63363751,1584.9,1584.5,0.019351]
[1674010882323,9.63363751,1584.9,1584.5,7.60089673]
[1674010882577,9.63363751,1584.9,1584.5,7.66366303]
[1674010883309,3.11662407,1584.8,1584.5,0.0821173]
[1674010883524,9.42696407,1584.7,1584.5,0.019351]
[1674010883849,9.49296407,1584.7,1584.3,20.4853863]
[1674010884070,9.49296407,1584.7,1584.3,14.1735663]
[1674010884217,3.34662407,1584.6,1584.3,0.0627663]
[1674010884428,0.00305349,1584.3,1584.1,34.2413563]
[1674010884652,0.00305349,1584.3,1584.1,26.1732563]
[1674010884900,0.00305349,1584.3,1584.1,32.4859863]
[1674010885828,3.11662407,1584.2,1584.1,0.0627663]
[1674010885996,22.59558183,1584.2,1584.0,0.00021394]
[1674010886207,3.34662407,1584.1,1584.0,0.00021394]
[1674010886416,9.65935407,1584.1,1584.0,0.00021394]
[1674010886684,16.03808407,1584.1,1584.0,0.00021394]
[1674010886839,18.30432225,1584.1,1584.0,0.00021394]
[1674010887798,5.67886225,1584.1,1584.0,0.00021394]
[1674010888008,3.41262407,1584.1,1584.0,0.00021394]
[1674010888216,3.34662407,1584.1,1584.0,0.00021394]
[1674010888681,3.11662407,1584.1,1584.0,0.00021394]
[1674010890540,0.066,1584.2,1584.0,1.67521394]
[1674010890910,4.63805349,1584.3,1584.2,1.67737018]
[1674010891064,4.57205349,1584.3,1584.2,1.8451072]
[1674010891430,4.57205349,1584.3,1584.2,14.4697672]
[1674010891765,4.57205349,1584.3,1584.2,20.8448635]
[1674010891909,4.57205349,1584.3,1584.2,19.99649332]
[1674010892328,4.57205349,1584.3,1584.2,13.68416332]
[1674010894322,4.57205349,1584.3,1584.2,0.0627663]
[1674010894650,4.57205349,1584.3,1584.1,6.31247]
[1674010894651,20.54253756,1584.3,1584.1,0.0627663]
[1674010894879,3.11662407,1584.2,1584.0,0.00021394]
[1674010895117,3.11662407,1584.1,1584.0,0.00021394]
[1674010895326,4.69076648,1584.1,1584.0,0.00021394]
[1674010895540,17.31622648,1584.1,1584.0,0.00021394]
[1674010895852,17.38222648,1584.1,1584.0,0.00021394]
[1674010896248,0.066,1584.1,1584.0,0.82921394]
[1674010896581,11.18017349,1584.3,1584.0,0.82921394]
[1674010896894,3.11662407,1584.2,1584.0,0.82921394]
[1674010897800,3.11662407,1584.2,1584.0,0.00021394]
[1674010898015,4.54630383,1584.2,1584.0,0.00021394]
[1674010898220,3.11662407,1584.1,1584.0,0.00021394]
[1674010898452,9.42935407,1584.1,1584.0,0.00021394]
[1674010898770,9.49535407,1584.1,1584.0,0.00021394]
[1674010899165,10.99535407,1584.1,1584.0,0.00021394]
[1674010899374,13.50032345,1584.1,1584.0,0.00021394]
[1674010899584,12.00032345,1584.1,1584.0,0.00021394]
[1674010900038,18.54305345,1584.1,1584.0,0.00021394]
[1674010900492,24.85578345,1584.1,1584.0,0.00021394]
[1674010902579,0.066,1584.1,1584.0,0.00021394]
[1674010902750,6.31233,1584.2,1584.0,0.00021394]
[1674010902751,6.37833,1584.2,1584.0,0.00021394]
[1674010902946,9.49495407,1584.2,1584.0,0.00021394]
[1674010903732,3.18262407,1584.2,1584.0,0.00021394]
[1674010904067,3.11662407,1584.2,1584.0,0.00021394]
[1674010904248,12.21869083,1584.2,1584.0,0.00021394]
[1674010904581,12.28469083,1584.2,1584.0,0.00021394]
[1674010904770,3.18262407,1584.2,1584.0,0.00021394]
[1674010905104,3.11662407,1584.2,1584.0,0.00021394]
[1674010905523,9.42902407,1584.2,1584.0,0.00021394]
[1674010905749,3.11662407,1584.1,1584.0,0.00021394]
[1674010906106,10.92935407,1584.1,1584.0,0.00021394]
[1674010906415,19.67009248,1584.1,1584.0,0.00021394]
[1674010906625,26.21282248,1584.1,1584.0,0.00021394]
[1674010907992,24.71282248,1584.1,1584.0,0.00021394]
[1674010908252,12.08736248,1584.1,1584.0,0.00021394]
[1674010909043,0.066,1584.1,1584.0,1.67521394]
[1674010909255,10.95011349,1584.3,1584.0,1.67521394]
[1674010909572,3.11662407,1584.2,1584.0,1.67521394]
[1674010910199,4.63805349,1584.3,1584.0,2.48569073]
[1674010910419,4.57205349,1584.3,1584.0,21.42506073]
[1674010910690,4.57205349,1584.3,1584.0,21.48782703]
[1674010912135,4.57205349,1584.3,1584.0,20.65882703]
[1674010912348,4.57205349,1584.3,1584.1,2.0658827]
[1674010912556,4.57205349,1584.3,1584.2,6.31233]
[1674010912771,4.57205349,1584.3,1584.2,6.3750963]
[1674010916393,4.57205349,1584.3,1584.2,1.7377663]
[1674010916680,4.57205349,1584.3,1584.1,0.0627663]
[1674010916814,4.57205349,1584.3,1584.0,0.06298024]
[1674010917025,0.45720535,1584.2,1584.0,0.00021394]
[1674010917363,10.94999349,1584.3,1584.0,0.00021394]
[1674010917565,0.0030744,1584.0,1583.8,20.3193563]
[1674010917780,0.0030744,1584.0,1583.8,14.0054663]
[1674010919601,0.0030744,1584.0,1583.8,20.3193763]
[1674010919813,0.0030744,1584.0,1583.8,14.0054663]
[1674010920200,0.63466384,1584.0,1583.8,14.0054663]
[1674010920450,0.0030744,1584.0,1583.8,14.0054663]
[1674010921384,3.11662407,1583.9,1583.8,0.0627663]
[1674010921605,3.11662407,1583.9,1583.7,0.06712326]
[1674010921606,3.34662407,1583.9,1583.7,0.06712326]
[1674010921970,15.97366407,1583.9,1583.7,0.06712326]
[1674010922178,1.59736641,1583.8,1583.7,0.06712326]
[1674010922439,7.91128641,1583.8,1583.7,0.06712326]
[1674010922626,7.97728641,1583.8,1583.7,0.06712326]
[1674010922839,23.95175048,1583.8,1583.7,0.06712326]
[1674010925215,23.95175048,1583.8,1583.7,0.29306354]
[1674010927651,2.39517505,1583.7,1583.6,0.0703564]
[1674010927842,33.27975734,1583.7,1583.6,0.0703564]
[1674010928108,33.34575734,1583.7,1583.6,0.0703564]
[1674010928423,35.16469285,1583.7,1583.6,0.0003564]
[1674010928625,1.5,1583.6,1583.5,0.0083269]
[1674010928889,30.52092753,1583.6,1583.5,0.0083269]
[1674010929213,30.58692753,1583.6,1583.5,0.0083269]
[1674010929574,29.08692753,1583.6,1583.5,0.0083269]
[1674010933942,26.08692753,1583.6,1583.5,0.0083269]
[1674010934090,3.18262407,1583.6,1583.5,0.0083269]
[1674010934423,3.11662407,1583.6,1583.5,0.0083269]
[1674010934880,9.43134407,1583.6,1583.5,0.0083269]
[1674010935038,22.12678407,1583.6,1583.5,0.0083269]
[1674010935458,22.35678407,1583.6,1583.5,0.0083269]
[1674010935671,25.22389448,1583.6,1583.5,0.0083269]
[1674010936612,28.22389448,1583.6,1583.5,0.0083269]
[1674010939869,25.22389448,1583.6,1583.5,0.0083269]
[1674010940116,22.35678407,1583.6,1583.5,0.0083269]
[1674010942442,16.04206407,1583.6,1583.5,0.0083269]
[1674010942654,0.066,1583.6,1583.5,0.8373269]
[1674010942871,6.31432,1583.7,1583.5,0.8373269]
[1674010942872,6.38032,1583.7,1583.5,0.8373269]
[1674010943024,9.49694407,1583.7,1583.5,0.8373269]
[1674010944239,9.49694407,1583.7,1583.5,0.0083269]
[1674010945755,3.18262407,1583.7,1583.5,0.0083269]
[1674010945981,3.11662407,1583.7,1583.5,0.79809389]
[1674010947075,3.11662407,1583.7,1583.5,0.0083269]
[1674010948446,0.066,1583.8,1583.5,12.6385669]
[1674010948652,0.0030744,1584.0,1583.5,19.0164532]
[1674010948808,3.11969847,1584.0,1583.5,19.0164532]
[1674010949337,0.0030744,1584.0,1583.6,1.90164532]
[1674010949587,0.0030744,1584.0,1583.7,18.9428]
[1674010949800,0.0030744,1584.0,1583.7,19.0055663]
[1674010949969,0.0030744,1584.0,1583.8,1.5]
[1674010950178,0.0030744,1584.0,1583.9,18.94056]
[1674010950394,0.0030744,1584.0,1583.9,22.0033263]
[1674010950689,0.0030744,1584.0,1583.9,26.67448793]
[1674010950861,0.0030744,1584.0,1583.9,28.58048793]
[1674010951554,0.00305349,1584.3,1584.0,0.00331978]
[1674010951767,0.00305349,1584.3,1584.1,18.93819]
[1674010951982,0.00305349,1584.3,1584.1,19.0009563]
[1674010952194,0.00305349,1584.3,1584.2,17.52475563]
[1674010952520,0.00305349,1584.3,1584.2,17.58752193]
[1674010956054,0.00305349,1584.3,1584.2,11.27519193]
[1674010957593,0.00305349,1584.3,1584.2,4.96286193]
[1674010957897,0.00305349,1584.3,1584.2,11.21242563]
[1674010958256,0.00305349,1584.3,1584.2,11.27519193]
[1674010958447,0.00305349,1584.3,1584.2,6.3750963]
[1674010958750,0.00305349,1584.3,1584.2,0.0627663]
[1674010958897,0.00305349,1584.3,1584.2,1.675]
[1674010959107,0.00305349,1584.3,1584.1,12.6878463]
[1674010959765,0.00305349,1584.3,1584.1,0.0627663]
[1674010959988,0.00305349,1584.3,1584.0,21.23042608]
[1674010960393,0.63451284,1584.3,1584.0,21.23042608]
[1674010960629,0.63451284,1584.3,1584.0,12.69232608]
[1674010961158,3.11662407,1584.2,1584.0,0.06608608]
[1674010961310,3.81713691,1584.3,1584.0,3.00331978]
[1674010961521,0.00305349,1584.3,1584.0,10.81641978]
[1674010961764,0.00305349,1584.3,1584.0,23.50544608]
[1674010962003,0.00305349,1584.3,1584.1,1.5]
[1674010962321,0.00305349,1584.3,1584.1,14.12495]
[1674010962620,0.00305349,1584.3,1584.2,14.037155]
[1674010962839,0.00305349,1584.3,1584.2,23.3622513]
[1674010965125,0.00305349,1584.3,1584.2,14.0499213]
[1674010965343,0.00305349,1584.3,1584.2,12.6874263]
[1674010965531,0.00305349,1584.3,1584.2,6.3750963]
[1674010965750,0.00305349,1584.3,1584.2,0.8917663]
[1674010965953,0.00305349,1584.3,1584.2,7.14133]
[1674010966265,0.00305349,1584.3,1584.2,7.2040963]
[1674010971507,0.00305349,1584.3,1584.2,0.8917663]
[1674010971766,0.00305349,1584.3,1584.2,0.829]
[1674010972138,0.00305349,1584.3,1584.2,22.63206563]
[1674010972360,0.00305349,1584.3,1584.2,22.69483193]
[1674010973094,0.00305349,1584.3,1584.2,25.69483193]
[1674010974027,0.00305349,1584.3,1584.2,38.76383193]
[1674010977875,0.00305349,1584.3,1584.2,38.76383193]
[1674010981835,0.00305349,1584.3,1584.2,39.16445703]
[1674010982041,0.00305349,1584.3,1584.2,32.4693814]
[1674010982288,3.96567756,1584.3,1584.2,0.0627663]
[1674010982458,3.96567756,1584.3,1584.0,0.06608608]
[1674010982459,10.50760756,1584.3,1584.0,0.06608608]
[1674010982667,1.05076076,1584.2,1584.0,0.00331978]
[1674010982931,3.11662407,1584.1,1584.0,0.00331978]
[1674010983084,9.65935407,1584.1,1583.8,0.06201156]
[1674010983307,4.61662407,1584.0,1583.8,0.06201156]
[1674010983513,15.74366407,1583.9,1583.5,0.0083269]
[1674010983739,7.98299048,1583.8,1583.5,0.0083269]
[1674010983951,9.43094407,1583.7,1583.5,0.0083269]
[1674010984164,3.34662407,1583.6,1583.5,0.0083269]
[1674010984371,9.66134407,1583.6,1583.5,0.0083269]
[1674010984654,11.22734407,1583.6,1583.5,0.0083269]
[1674010984784,11.48151048,1583.6,1583.5,0.0083269]
[1674010985463,17.79623048,1583.6,1583.5,0.0083269]
[1674010986032,11.48151048,1583.6,1583.5,0.0083269]
[1674010987042,17.79623048,1583.6,1583.5,0.0083269]
[1674010988981,20.79623048,1583.6,1583.5,0.0083269]
[1674010989608,11.25151048,1583.6,1583.5,0.0083269]
[1674010989823,0.066,1583.6,1583.5,0.0083269]
[1674010990082,3.11662407,1583.6,1583.5,0.0083269]
[1674010990719,15.74606407,1583.6,1583.5,0.0083269]
[1674010990926,15.81206407,1583.6,1583.5,0.0083269]
[1674010991505,16.04206407,1583.6,1583.5,0.0083269]
[1674010991828,18.42773048,1583.6,1583.5,0.0083269]
[1674010992912,5.56829048,1583.6,1583.5,0.0083269]
[1674010993085,3.18262407,1583.6,1583.5,0.8373269]
[1674010993299,0.066,1583.7,1583.5,0.8373269]
[1674010993511,6.37983,1583.9,1583.5,0.8373269]
[1674010993748,3.18262407,1583.9,1583.5,7.1524469]
[1674010993959,3.11662407,1583.9,1583.5,7.21735836]
[1674010994191,3.047,1584.0,1583.6,0.72173584]
[1674010994379,3.11662407,1583.9,1583.5,6.38835836]
[1674010994789,9.43020407,1583.9,1583.5,6.38835836]
[1674010994995,9.49620407,1583.9,1583.5,6.38835836]
[1674010995325,3.18262407,1583.9,1583.5,6.38835836]
[1674010995514,3.11662407,1583.9,1583.5,6.38835836]
[1674010995732,3.11662407,1583.9,1583.5,8.2976265]
[1674010996695,9.43018407,1583.9,1583.5,6.38835836]
[1674010996911,9.49618407,1583.9,1583.5,6.38835836]
[1674010997260,0.066,1583.9,1583.5,19.01859836]
[1674010997444,2.981,1584.0,1583.7,18.94296]
[1674010997705,2.981,1584.0,1583.7,19.00787146]
[1674010998232,2.981,1584.0,1583.9,6.31352]
[1674010998442,2.981,1584.0,1583.9,6.37843146]
[1674011000920,2.981,1584.0,1583.9,19.00547146]
[1674011001227,2.981,1584.0,1583.9,22.40609656]
[1674011002118,0.066,1584.3,1583.9,22.40609656]
[1674011002334,0.13139774,1584.5,1584.0,5.24060966]
[1674011002539,0.13139774,1584.5,1584.1,18.93759]
[1674011002751,0.13139774,1584.5,1584.1,19.00250146]
[1674011002973,0.13139774,1584.5,1584.2,1.5]
[1674011003181,0.13139774,1584.5,1584.3,12.62386]
[1674011003426,0.13139774,1584.5,1584.3,20.71308746]
[1674011003869,0.13139774,1584.5,1584.3,14.40115746]
[1674011004026,0.13139774,1584.5,1584.3,6.37684146]
[1674011004245,0.13139774,1584.5,1584.3,0.06491146]
[1674011004607,9.55925181,1584.5,1584.2,0.06491146]
[1674011004826,3.11662407,1584.4,1584.1,0.06491146]
[1674011005132,6.62359241,1584.3,1583.9,6.37606146]
[1674011005293,6.68959241,1584.3,1583.9,6.37806146]
[1674011006183,3.34662407,1584.2,1583.9,0.06491146]
[1674011006495,3.34662407,1584.2,1583.9,3.0]
[1674011006709,4.98143872,1584.2,1583.9,9.3135]
[1674011006883,4.98343872,1584.2,1583.9,9.37641146]
[1674011007090,4.98143872,1584.2,1583.9,9.37841146]
[1674011007512,4.98143872,1584.2,1583.9,9.37593486]
[1674011008172,4.98143872,1584.2,1583.9,6.37841146]
[1674011008329,0.49814387,1584.1,1583.9,6.37841146]
[1674011009435,5.04743872,1584.2,1583.9,6.37841146]
[1674011012174,3.11662407,1584.1,1583.9,0.06491146]
[1674011012346,3.11662407,1584.1,1583.8,0.06491146]
[1674011012551,3.34662407,1584.0,1583.7,8.50451146]
[1674011012763,0.33466241,1583.9,1583.7,0.06491146]
[1674011013085,0.33466241,1583.9,1583.6,12.69385146]
[1674011013615,3.45128648,1583.9,1583.6,0.06491146]
[1674011013814,0.34512865,1583.8,1583.5,6.38803836]
[1674011015959,3.46175272,1583.8,1583.5,6.38803836]
[1674011016119,0.34512865,1583.8,1583.5,19.01858836]
[1674011016327,6.60913,1584.0,1583.5,19.01858836]
[1674011016576,3.11662407,1583.9,1583.5,19.01858836]
[1674011016905,0.23,1583.8,1583.5,19.01858836]
[1674011019165,0.066,1584.0,1583.5,19.01858836]
[1674011019378,3.11662407,1584.0,1583.6,1.90185884]
[1674011019619,0.066,1584.1,1583.6,1.90185884]
[1674011019620,0.066,1584.1,1583.7,18.9428]
[1674011019832,0.066,1584.2,1583.7,19.00771146]
[1674011020170,0.23,1584.1,1583.7,0.06491146]
[1674011020338,0.23,1584.1,1583.7,20.24713703]
[1674011020691,0.23,1584.1,1583.7,6.37915146]
[1674011020692,3.11662407,1584.0,1583.7,6.37915146]
[1674011022419,9.42977407,1584.0,1583.7,0.06491146]
[1674011022680,9.49577407,1584.0,1583.6,23.77053146]
[1674011022916,9.49577407,1584.0,1583.6,15.69393146]
[1674011023633,11.09962448,1584.0,1583.6,15.69393146]
[1674011024120,11.09962448,1584.0,1583.6,12.69393146]
[1674011024536,9.66023407,1583.9,1583.6,0.06491146]
[1674011024745,9.72623407,1583.9,1583.5,12.70295836]
[1674011025307,0.296,1583.9,1583.5,19.01807836]
[1674011025521,0.066,1584.1,1583.7,18.94256]
[1674011025692,0.066,1584.2,1583.7,19.00747146]
[1674011025886,3.11662407,1584.2,1583.7,19.00747146]
[1674011026463,0.066,1584.3,1583.7,19.00747146]
[1674011026677,7.6264,1584.4,1583.8,1.70074715]
[1674011026988,7.6264,1584.4,1583.9,18.93963]
[1674011026989,10.74302407,1584.4,1583.9,18.93963]
[1674011027196,0.23,1584.3,1583.9,19.00454146]
[1674011027775,3.34662407,1584.3,1583.9,19.00454146]
[1674011030071,9.65858407,1584.3,1583.9,19.00454146]
[1674011030363,0.96585841,1584.2,1583.9,12.69133146]
[1674011030505,9.72458407,1584.3,1583.9,12.69133146]
[1674011031916,3.11662407,1584.2,1583.9,0.06491146]
[1674011032129,3.11662407,1584.1,1583.8,0.06491146]
[1674011032314,9.37975407,1584.0,1583.7,0.06491146]
[1674011032526,9.37975407,1584.0,1583.6,6.37939146]
[1674011032527,16.07054648,1584.0,1583.6,6.37939146]
[1674011032735,0.23,1583.9,1583.6,6.37939146]
[1674011037148,0.23,1583.9,1583.6,12.69411146]
[1674011037694,0.23,1583.9,1583.6,15.9315773]
[1674011037863,3.06662407,1584.0,1583.6,22.2462973]
[1674011038073,3.06662407,1584.0,1583.6,23.09869258]
[1674011038539,3.06662407,1584.0,1583.6,22.2462973]
[1674011039918,0.066,1584.1,1583.7,0.5929176]
[1674011040077,8.2112,1584.3,1583.8,18.94152]
[1674011040282,8.2112,1584.3,1583.8,19.00643146]
[1674011040283,0.066,1584.3,1583.8,19.00643146]
[1674011040595,0.19739774,1584.5,1583.9,2.09276177]
[1674011040808,1.28745849,1584.5,1583.9,4.5]
[1674011041018,0.13139774,1584.5,1584.0,19.38843]
[1674011041249,0.13139774,1584.5,1584.0,19.45334146]
[1674011042740,1.28773994,1584.5,1584.0,19.45334146]
[1674011042955,0.79104926,1584.5,1584.0,19.45334146]
[1674011044096,0.79104926,1584.5,1584.1,0.22572809]
[1674011044305,4.89674022,1584.5,1584.2,6.31225]
[1674011044552,3.34662407,1584.4,1584.2,0.06491146]
[1674011044767,4.00627559,1584.4,1584.1,0.29063955]
[1674011045077,4.00627559,1584.4,1584.1,0.22572809]
[1674011045269,0.40062756,1584.3,1584.1,0.22572809]
[1674011049539,10.9856773,1584.3,1584.1,0.22572809]
[1674011049783,4.19262407,1584.2,1584.1,0.22572809]
[1674011050015,17.97377986,1584.2,1584.1,0.22572809]
[1674011050231,24.68152523,1584.2,1584.1,0.22572809]
[1674011050395,28.14348619,1584.2,1584.1,0.22572809]
[1674011050615,28.92550812,1584.2,1584.1,0.22572809]
[1674011050968,30.24676422,1584.2,1584.1,0.22572809]
[1674011051547,28.92827739,1584.2,1584.1,0.22572809]
[1674011053991,29.58944928,1584.2,1584.1,0.22572809]
[1674011054446,28.92827739,1584.2,1584.1,0.22572809]
[1674011055095,28.92827739,1584.2,1584.1,0.22323817]
[1674011055308,30.24676422,1584.2,1584.1,0.22323817]
[1674011056565,29.25492806,1584.2,1584.1,0.22323817]
[1674011057188,32.57985482,1584.2,1584.1,0.01019785]
[1674011057359,36.67485304,1584.2,1584.1,0.01019785]
[1674011057820,1.5,1584.1,1583.5,0.0083269]
[1674011058037,6.31432,1583.7,1583.5,0.0083269]
[1674011058253,3.34662407,1583.6,1583.5,0.0083269]
[1674011058417,9.66134407,1583.6,1583.5,0.0083269]
[1674011058773,9.72734407,1583.6,1583.5,0.0083269]
[1674011059817,3.41262407,1583.6,1583.5,0.0083269]
[1674011060014,3.34662407,1583.6,1583.5,0.0083269]
[1674011061979,0.23,1583.6,1583.5,6.3234469]
[1674011062187,0.23,1583.6,1583.5,20.28985935]
[1674011062398,21.53220684,1584.0,1583.5,20.28985935]
[1674011062663,21.53220684,1584.0,1583.5,19.01859836]
[1674011062664,3.18262407,1584.0,1583.5,19.01859836]
[1674011062872,3.11662407,1584.0,1583.5,19.01859836]
[1674011063257,30.206,1584.1,1583.5,19.01859836]
[1674011063494,3.18262407,1584.1,1583.7,18.94247]
[1674011063662,3.11662407,1584.1,1583.7,19.00738146]
[1674011063873,3.11662407,1584.1,1583.8,8.21439815]
[1674011064130,2.91662407,1584.1,1583.8,8.27930961]
[1674011064710,0.23,1584.0,1583.8,8.27930961]
[1674011064956,0.03,1584.0,1583.8,8.27930961]
[1674011065169,2.91662407,1584.1,1583.8,8.27930961]
[1674011065568,2.71662407,1584.1,1583.8,8.27930961]
[1674011066343,2.51662407,1584.1,1583.8,8.27930961]
[1674011066705,2.31662407,1584.1,1583.8,8.27930961]
[1674011066912,2.31862407,1584.1,1583.8,14.59122961]
[1674011067127,2.31662407,1584.1,1583.9,1.45912296]
[1674011067391,2.11662407,1584.1,1583.9,1.45912296]
[1674011067575,0.066,1584.2,1583.9,20.39964296]
[1674011067925,24.54215146,1584.4,1584.0,14.6659743]
[1674011068234,0.066,1584.4,1584.0,21.04401576]
[1674011068405,0.13139774,1584.5,1584.2,18.93675]
[1674011068618,13.81370098,1584.7,1584.2,19.00166146]
[1674011068826,3.59906073,1584.6,1584.2,19.00166146]
[1674011069041,3.11662407,1584.6,1584.2,20.90182761]
[1674011070425,2.91662407,1584.6,1584.2,20.90182761]
[1674011070824,2.71662407,1584.6,1584.2,20.90182761]
[1674011071052,0.20074436,1584.7,1584.2,20.90182761]
[1674011071240,3.11662407,1584.7,1584.2,20.90182761]
[1674011071516,2.91662407,1584.7,1584.4,6.31145]
[1674011071645,2.91662407,1584.7,1584.4,6.37636146]
[1674011071862,2.71662407,1584.7,1584.4,6.37636146]
[1674011072106,2.51662407,1584.7,1584.4,6.37636146]
[1674011072541,2.31662407,1584.7,1584.4,6.37636146]
[1674011072909,2.11662407,1584.7,1584.4,6.37636146]
[1674011073377,1.91662407,1584.7,1584.4,6.37636146]
[1674011073758,3.11662407,1584.6,1584.4,0.06491146]
[1674011074100,0.03,1584.5,1584.2,6.37720146]
[1674011074270,3.11662407,1584.6,1584.2,12.68953146]
[1674011074482,2.91662407,1584.6,1584.2,12.68953146]
[1674011074904,2.71662407,1584.6,1584.2,12.68953146]
[1674011075107,3.11662407,1584.5,1584.2,12.68953146]
[1674011075383,13.72832407,1584.4,1584.2,0.06491146]
[1674011075603,2.78262407,1584.4,1584.1,6.31265]
[1674011075748,2.78262407,1584.4,1584.1,6.37756146]
[1674011075749,2.51662407,1584.4,1584.1,6.37756146]
[1674011076115,2.31662407,1584.4,1584.1,6.37756146]
[1674011076285,2.31662407,1584.4,1584.1,8.27790361]
[1674011077145,2.11662407,1584.4,1584.1,8.27790361]
[1674011077357,0.066,1584.5,1584.1,14.59063361]
[1674011077534,3.11662407,1584.5,1584.1,14.59063361]
[1674011077755,2.91662407,1584.5,1584.1,14.59063361]
[1674011077950,2.91662407,1584.5,1584.2,1.45906336]
[1674011078161,2.91662407,1584.5,1584.2,7.77132336]
[1674011078428,2.91662407,1584.5,1584.2,7.83623482]
[1674011078949,0.066,1584.6,1584.2,20.46089482]
[1674011079180,14.13537,1584.7,1584.2,20.46089482]
[1674011079181,0.066,1584.7,1584.2,20.46089482]